[Event "Late-Titled-Tuesday-Blitz-October-10-2023"]
[Site "Chess.com"]
[Date "2023.10.10"]
[Round "6"]
[White "Byniolus"]
[Black "vladislavkovalev"]
[Result "1/2-1/2"]
[WhiteElo "2715"]
[BlackElo "2866"]
[TimeControl "180+1"]
[EndTime "15:02:59 PDT"]
[Termination "Game drawn by repetition"]

1. d4 {[%clk 0:03:00.9]} 1... Nf6 {[%clk 0:03:00.4]} 2. Nf3 {[%clk 0:03:00.3]}
2... e6 {[%clk 0:03:00.8]} 3. Bf4 {[%clk 0:02:59.8]} 3... d5 {[%clk 0:03:00.8]}
4. e3 {[%clk 0:03:00.2]} 4... c5 {[%clk 0:03:01.6]} 5. c3 {[%clk 0:03:00.2]}
5... Nc6 {[%clk 0:03:02.2]} 6. Nbd2 {[%clk 0:03:00.8]} 6... cxd4 {[%clk
0:03:02.9]} 7. cxd4 {[%clk 0:03:00.9]} 7... Be7 {[%clk 0:03:00.4]} 8. Bd3 {[%clk
0:03:00.6]} 8... O-O {[%clk 0:03:01]} 9. O-O {[%clk 0:02:59.4]} 9... Bd6 {[%clk
0:02:52.4]} 10. Bg3 {[%clk 0:02:58.8]} 10... Bxg3 {[%clk 0:02:52.1]} 11. hxg3
{[%clk 0:02:59.7]} 11... Qd6 {[%clk 0:02:48.7]} 12. Rc1 {[%clk 0:02:53.4]} 12...
Bd7 {[%clk 0:02:49]} 13. a3 {[%clk 0:02:52.5]} 13... Rfc8 {[%clk 0:02:48.8]} 14.
Qe2 {[%clk 0:02:21.9]} 14... Rc7 {[%clk 0:02:48.1]} 15. Rc3 {[%clk 0:02:18.8]}
15... Rac8 {[%clk 0:02:47.8]} 16. Rfc1 {[%clk 0:02:19]} 16... Ne7 {[%clk
0:02:39.3]} 17. Nb1 {[%clk 0:02:14.2]} 17... Rxc3 {[%clk 0:02:38.6]} 18. Rxc3
{[%clk 0:02:15.1]} 18... Rxc3 {[%clk 0:02:39]} 19. Nxc3 {[%clk 0:02:15.7]} 19...
Qc7 {[%clk 0:02:29.8]} 20. Qc2 {[%clk 0:02:13.7]} 20... g6 {[%clk 0:02:26.2]}
21. Ne4 {[%clk 0:01:58.4]} 21... Qxc2 {[%clk 0:02:26.3]} 22. Nxf6+ {[%clk
0:01:58.1]} 22... Kg7 {[%clk 0:02:27.1]} 23. Nh5+ {[%clk 0:01:57.3]} 23... Kh6
{[%clk 0:02:22.4]} 24. Bxc2 {[%clk 0:01:56.9]} 24... Kxh5 {[%clk 0:02:23.1]} 25.
g4+ {[%clk 0:01:38.7]} 25... Kh6 {[%clk 0:02:23.2]} 26. g5+ {[%clk 0:01:39.5]}
26... Kg7 {[%clk 0:02:23.7]} 27. Ne5 {[%clk 0:01:35.4]} 27... Be8 {[%clk
0:02:24.2]} 28. Ng4 {[%clk 0:01:26.7]} 28... Ng8 {[%clk 0:02:24.4]} 29. f4
{[%clk 0:01:14]} 29... h6 {[%clk 0:02:22.2]} 30. Kf2 {[%clk 0:01:08]} 30... hxg5
{[%clk 0:02:22.4]} 31. fxg5 {[%clk 0:01:08.9]} 31... f6 {[%clk 0:01:59.5]} 32.
gxf6+ {[%clk 0:00:53.2]} 32... Nxf6 {[%clk 0:02:00.4]} 33. Ne5 {[%clk
0:00:53.8]} 33... g5 {[%clk 0:01:46.5]} 34. b4 {[%clk 0:00:46.2]} 34... Nd7
{[%clk 0:01:38.3]} 35. Nxd7 {[%clk 0:00:27.1]} 35... Bxd7 {[%clk 0:01:39.2]} 36.
e4 {[%clk 0:00:24.3]} 36... dxe4 {[%clk 0:01:35.4]} 37. Bxe4 {[%clk 0:00:25.2]}
37... b6 {[%clk 0:01:35.7]} 38. Ke3 {[%clk 0:00:22.1]} 38... Kf6 {[%clk
0:01:36.3]} 39. g3 {[%clk 0:00:20.5]} 39... Ke7 {[%clk 0:01:32]} 40. Bd3 {[%clk
0:00:18.6]} 40... Bc6 {[%clk 0:01:30.4]} 41. Bc4 {[%clk 0:00:16.7]} 41... Kd6
{[%clk 0:01:30.2]} 42. Bb3 {[%clk 0:00:17]} 42... Bd5 {[%clk 0:01:25.1]} 43. Ba4
{[%clk 0:00:17.4]} 43... Ke7 {[%clk 0:01:20.8]} 44. Bc2 {[%clk 0:00:17]} 44...
Kf6 {[%clk 0:01:21.5]} 45. Bd3 {[%clk 0:00:17.1]} 45... Ke7 {[%clk 0:01:09.1]}
46. Bc2 {[%clk 0:00:17.3]} 46... Kd6 {[%clk 0:01:07.1]} 47. Bd3 {[%clk
0:00:17.8]} 47... Kc6 {[%clk 0:01:06.6]} 48. Be2 {[%clk 0:00:17]} 48... a5
{[%clk 0:01:07.1]} 49. bxa5 {[%clk 0:00:13.7]} 49... bxa5 {[%clk 0:01:07.7]} 50.
Bd3 {[%clk 0:00:13.8]} 50... Kd6 {[%clk 0:01:04.7]} 51. Be2 {[%clk 0:00:14]}
51... Bc6 {[%clk 0:01:03.6]} 52. Bc4 {[%clk 0:00:13.8]} 52... Bd5 {[%clk
0:00:57.1]} 53. Be2 {[%clk 0:00:14]} 53... Ke7 {[%clk 0:00:56.1]} 54. Bd3 {[%clk
0:00:14.2]} 54... Kf6 {[%clk 0:00:56.9]} 55. Bc2 {[%clk 0:00:13.7]} 55... Bc6
{[%clk 0:00:57.2]} 56. Bd3 {[%clk 0:00:13.9]} 56... Be8 {[%clk 0:00:57.4]} 57.
Bc2 {[%clk 0:00:12.9]} 57... Bh5 {[%clk 0:00:55]} 58. Bd3 {[%clk 0:00:13]} 58...
Bg4 {[%clk 0:00:55.7]} 59. Be4 {[%clk 0:00:11.6]} 59... Bf5 {[%clk 0:00:56.3]}
60. Bf3 {[%clk 0:00:12.2]} 60... Bc2 {[%clk 0:00:56]} 61. Bg4 {[%clk 0:00:11.8]}
61... Bb3 {[%clk 0:00:54.8]} 62. Bh3 {[%clk 0:00:11.6]} 62... Bd5 {[%clk
0:00:55.3]} 63. Bg4 {[%clk 0:00:12]} 63... Bg2 {[%clk 0:00:55.7]} 64. Kf2 {[%clk
0:00:11.2]} 64... Be4 {[%clk 0:00:56.2]} 65. Ke3 {[%clk 0:00:11.8]} 65... Bc6
{[%clk 0:00:56]} 66. Bh3 {[%clk 0:00:11.6]} 66... Bb7 {[%clk 0:00:53.6]} 67. Bg4
{[%clk 0:00:11.8]} 67... Bd5 {[%clk 0:00:54.4]} 68. Bh3 {[%clk 0:00:12]} 68...
Ke7 {[%clk 0:00:52.6]} 69. Bg4 {[%clk 0:00:11.7]} 69... Kd6 {[%clk 0:00:53.3]}
70. Be2 {[%clk 0:00:12.1]} 1/2-1/2

[Event "Late-Titled-Tuesday-Blitz-October-10-2023"]
[Site "Chess.com"]
[Date "2023.10.10"]
[Round "6"]
[White "mac0504"]
[Black "Arystanner"]
[Result "0-1"]
[WhiteElo "2572"]
[BlackElo "2820"]
[TimeControl "180+1"]
[EndTime "15:03:00 PDT"]
[Termination "Arystanner won on time"]

1. d4 {[%clk 0:02:53.2]} 1... Nf6 {[%clk 0:02:59.8]} 2. Nf3 {[%clk 0:02:52.9]}
2... e6 {[%clk 0:03:00.1]} 3. Bf4 {[%clk 0:02:53]} 3... c5 {[%clk 0:02:59.3]} 4.
e3 {[%clk 0:02:51.4]} 4... d5 {[%clk 0:02:59.9]} 5. Nbd2 {[%clk 0:02:51]} 5...
Nc6 {[%clk 0:03:00.6]} 6. c3 {[%clk 0:02:51.1]} 6... Nh5 {[%clk 0:03:01]} 7. Bg5
{[%clk 0:02:45.5]} 7... Qb6 {[%clk 0:03:01]} 8. Qb3 {[%clk 0:02:44.8]} 8... h6
{[%clk 0:03:01.5]} 9. Bh4 {[%clk 0:02:42.6]} 9... g5 {[%clk 0:03:01.7]} 10. Bg3
{[%clk 0:02:42.9]} 10... Nxg3 {[%clk 0:03:01.4]} 11. hxg3 {[%clk 0:02:43.1]}
11... Bg7 {[%clk 0:03:01.9]} 12. Bb5 {[%clk 0:01:55.1]} 12... Bd7 {[%clk
0:03:00.7]} 13. g4 {[%clk 0:01:33.4]} 13... O-O-O {[%clk 0:03:00.7]} 14. Be2
{[%clk 0:01:25.8]} 14... Kb8 {[%clk 0:02:43.6]} 15. Qxb6 {[%clk 0:01:16.3]}
15... axb6 {[%clk 0:02:43.8]} 16. a3 {[%clk 0:01:17.2]} 16... e5 {[%clk
0:02:43.5]} 17. dxe5 {[%clk 0:01:17.4]} 17... Bxg4 {[%clk 0:02:42.9]} 18. Nxg5
{[%clk 0:00:55.8]} 18... Bxe2 {[%clk 0:02:25.7]} 19. Nxf7 {[%clk 0:00:54.6]}
19... Bd3 {[%clk 0:02:25]} 20. Nxh8 {[%clk 0:00:51.7]} 20... Rxh8 {[%clk
0:02:18.9]} 21. f4 {[%clk 0:00:51.9]} 21... d4 {[%clk 0:02:19.5]} 22. cxd4
{[%clk 0:00:46]} 22... cxd4 {[%clk 0:02:19.4]} 23. exd4 {[%clk 0:00:46.6]} 23...
Nxd4 {[%clk 0:02:19.8]} 24. Kf2 {[%clk 0:00:47]} 24... Bf5 {[%clk 0:01:53.9]}
25. Rad1 {[%clk 0:00:38.9]} 25... Rc8 {[%clk 0:01:48.4]} 26. Rc1 {[%clk
0:00:36.3]} 26... Rd8 {[%clk 0:01:46.4]} 27. Nc4 {[%clk 0:00:36.8]} 27... Bf8
{[%clk 0:01:34]} 28. b4 {[%clk 0:00:32.9]} 28... Ne6 {[%clk 0:01:17.7]} 29. g3
{[%clk 0:00:25.5]} 29... b5 {[%clk 0:01:14.9]} 30. Nd6 {[%clk 0:00:15.8]} 30...
Bxd6 {[%clk 0:01:13.9]} 31. exd6 {[%clk 0:00:16.7]} 31... Rxd6 {[%clk
0:01:11.4]} 32. Rhd1 {[%clk 0:00:17.4]} 32... Ra6 {[%clk 0:01:00.6]} 33. Rd5
{[%clk 0:00:17.7]} 33... Bg4 {[%clk 0:01:00.7]} 34. Rc3 {[%clk 0:00:16.3]} 34...
Rc6 {[%clk 0:00:53.8]} 35. Rxc6 {[%clk 0:00:02.6]} 35... bxc6 {[%clk 0:00:54.7]}
36. Re5 {[%clk 0:00:02.4]} 36... Kc7 {[%clk 0:00:50.3]} 37. f5 {[%clk
0:00:02.7]} 37... Ng5 {[%clk 0:00:50.5]} 38. Ke3 {[%clk 0:00:02.5]} 38... Kd6
{[%clk 0:00:47.6]} 39. Kf4 {[%clk 0:00:02.3]} 39... Bd1 {[%clk 0:00:37]} 40. Re8
{[%clk 0:00:02.3]} 40... Nh3+ {[%clk 0:00:37.5]} 41. Ke4 {[%clk 0:00:01.8]}
41... Bc2+ {[%clk 0:00:37.9]} 42. Kd4 {[%clk 0:00:01.5]} 42... Bxf5 {[%clk
0:00:38.4]} 43. Rh8 {[%clk 0:00:01.8]} 43... Ng5 {[%clk 0:00:31.4]} 44. Rxh6+
{[%clk 0:00:02.2]} 44... Ne6+ {[%clk 0:00:32.1]} 45. Ke3 {[%clk 0:00:02.4]}
45... Ke5 {[%clk 0:00:32.9]} 46. Rh8 {[%clk 0:00:02.4]} 46... Nc7 {[%clk
0:00:29.9]} 47. Rg8 {[%clk 0:00:02.8]} 47... Nd5+ {[%clk 0:00:30.2]} 48. Kf3
{[%clk 0:00:03.5]} 48... Be4+ {[%clk 0:00:29.5]} 49. Kf2 {[%clk 0:00:03.3]}
49... Nb6 {[%clk 0:00:28.3]} 50. g4 {[%clk 0:00:02.3]} 50... Nc4 {[%clk
0:00:28.9]} 51. Ra8 {[%clk 0:00:02.8]} 51... Kf4 {[%clk 0:00:28]} 52. Ra6 {[%clk
0:00:02]} 52... Nb2 {[%clk 0:00:25.8]} 0-1

[Event "Late-Titled-Tuesday-Blitz-October-10-2023"]
[Site "Chess.com"]
[Date "2023.10.10"]
[Round "6"]
[White "SEBAZZANO"]
[Black "protectiago"]
[Result "1-0"]
[WhiteElo "2241"]
[BlackElo "2070"]
[TimeControl "180+1"]
[EndTime "15:03:04 PDT"]
[Termination "SEBAZZANO won on time"]

1. d4 {[%clk 0:03:00]} 1... Nf6 {[%clk 0:02:59.5]} 2. Bf4 {[%clk 0:02:58.4]}
2... d5 {[%clk 0:02:58]} 3. e3 {[%clk 0:02:58.1]} 3... e6 {[%clk 0:02:53.8]} 4.
Nd2 {[%clk 0:02:56.9]} 4... Bd6 {[%clk 0:02:53.4]} 5. Bg3 {[%clk 0:02:56.7]}
5... c5 {[%clk 0:02:50.5]} 6. c3 {[%clk 0:02:56.3]} 6... O-O {[%clk 0:02:50]} 7.
Ngf3 {[%clk 0:02:55.8]} 7... Bxg3 {[%clk 0:02:46.9]} 8. hxg3 {[%clk 0:02:55.5]}
8... Nc6 {[%clk 0:02:47]} 9. Bd3 {[%clk 0:02:53.9]} 9... h6 {[%clk 0:02:44.3]}
10. Qe2 {[%clk 0:02:38.8]} 10... Qb6 {[%clk 0:02:39.7]} 11. O-O-O {[%clk
0:02:21]} 11... e5 {[%clk 0:02:30.5]} 12. Nxe5 {[%clk 0:02:16.3]} 12... Nxe5
{[%clk 0:02:29.6]} 13. dxe5 {[%clk 0:02:16.1]} 13... Ng4 {[%clk 0:02:23.9]} 14.
Nf3 {[%clk 0:01:58.6]} 14... Re8 {[%clk 0:02:19.2]} 15. Bb5 {[%clk 0:01:49.4]}
15... Rd8 {[%clk 0:02:14.1]} 16. e4 {[%clk 0:01:35.1]} 16... c4 {[%clk 0:02:12]}
17. Ba4 {[%clk 0:01:32.9]} 17... Nxf2 {[%clk 0:02:10.7]} 18. exd5 {[%clk
0:01:16.3]} 18... Bf5 {[%clk 0:01:23.9]} 19. d6 {[%clk 0:00:54.7]} 19... Bd3
{[%clk 0:01:04.7]} 20. Qd2 {[%clk 0:00:47.9]} 20... Ne4 {[%clk 0:00:50]} 21. Qf4
{[%clk 0:00:45.1]} 21... g5 {[%clk 0:00:48.8]} 22. Qg4 {[%clk 0:00:35.6]} 22...
Qe3+ {[%clk 0:00:47.5]} 23. Nd2 {[%clk 0:00:35.3]} 23... Nf2 {[%clk 0:00:30.9]}
24. Qd4 {[%clk 0:00:24.5]} 24... Nxd1 {[%clk 0:00:23.7]} 25. Rxd1 {[%clk
0:00:20.8]} 25... Qxg3 {[%clk 0:00:16]} 26. Nxc4 {[%clk 0:00:10.4]} 26... Bxc4
{[%clk 0:00:14.8]} 27. Qxc4 {[%clk 0:00:11.3]} 27... Qxe5 {[%clk 0:00:14.2]} 28.
d7 {[%clk 0:00:11.6]} 28... Qf4+ {[%clk 0:00:09.3]} 29. Qxf4 {[%clk 0:00:11.1]}
29... gxf4 {[%clk 0:00:09]} 30. Rf1 {[%clk 0:00:10.5]} 30... a6 {[%clk 0:00:08]}
31. Rxf4 {[%clk 0:00:10.3]} 31... b5 {[%clk 0:00:08.1]} 32. Bc2 {[%clk
0:00:08.6]} 32... Rxd7 {[%clk 0:00:07.4]} 33. g4 {[%clk 0:00:08.1]} 33... Rad8
{[%clk 0:00:07.2]} 34. b4 {[%clk 0:00:07.6]} 34... Kg7 {[%clk 0:00:07]} 35. Kb2
{[%clk 0:00:07.2]} 35... Rd6 {[%clk 0:00:06.8]} 36. Bb3 {[%clk 0:00:05.2]} 36...
f6 {[%clk 0:00:06.9]} 37. Re4 {[%clk 0:00:04.8]} 37... R8d7 {[%clk 0:00:06.1]}
38. Re8 {[%clk 0:00:04.1]} 38... Rd2+ {[%clk 0:00:04.9]} 39. Ka3 {[%clk
0:00:03.3]} 39... R2d3 {[%clk 0:00:05]} 40. Kb2 {[%clk 0:00:02.3]} 40... Rc7
{[%clk 0:00:04.7]} 41. Rg8+ {[%clk 0:00:01.4]} 1-0

[Event "Late-Titled-Tuesday-Blitz-October-10-2023"]
[Site "Chess.com"]
[Date "2023.10.10"]
[Round "6"]
[White "maximnovik"]
[Black "FontVella8"]
[Result "1/2-1/2"]
[WhiteElo "2472"]
[BlackElo "2628"]
[TimeControl "180+1"]
[EndTime "15:03:15 PDT"]
[Termination "Game drawn - insufficient material"]

1. e4 {[%clk 0:02:59.3]} 1... c6 {[%clk 0:03:00]} 2. d4 {[%clk 0:02:58.6]} 2...
d5 {[%clk 0:03:00.9]} 3. Nc3 {[%clk 0:02:58.3]} 3... dxe4 {[%clk 0:03:00.4]} 4.
Nxe4 {[%clk 0:02:58.2]} 4... Nf6 {[%clk 0:03:01]} 5. Nxf6+ {[%clk 0:02:58.3]}
5... exf6 {[%clk 0:03:01.9]} 6. c3 {[%clk 0:02:58.2]} 6... Bd6 {[%clk 0:03:02]}
7. Bd3 {[%clk 0:02:58.8]} 7... O-O {[%clk 0:03:02.3]} 8. Ne2 {[%clk 0:02:59.5]}
8... Re8 {[%clk 0:03:02.7]} 9. O-O {[%clk 0:02:58.3]} 9... Nd7 {[%clk
0:03:02.3]} 10. Bf4 {[%clk 0:02:57.7]} 10... Nf8 {[%clk 0:02:57.9]} 11. Qd2
{[%clk 0:02:57.1]} 11... Ng6 {[%clk 0:02:55]} 12. Bxd6 {[%clk 0:02:53.3]} 12...
Qxd6 {[%clk 0:02:55.9]} 13. Rfe1 {[%clk 0:02:52.1]} 13... Bd7 {[%clk 0:02:53.1]}
14. Ng3 {[%clk 0:02:48.6]} 14... Nf4 {[%clk 0:02:46.6]} 15. Bf1 {[%clk
0:02:42.7]} 15... h5 {[%clk 0:02:41.2]} 16. Rxe8+ {[%clk 0:02:39.8]} 16... Rxe8
{[%clk 0:02:40.8]} 17. Re1 {[%clk 0:02:40.4]} 17... Rxe1 {[%clk 0:02:34.2]} 18.
Qxe1 {[%clk 0:02:40.2]} 18... Qe6 {[%clk 0:02:34.2]} 19. Qxe6 {[%clk 0:02:37.9]}
19... Bxe6 {[%clk 0:02:34.4]} 20. b3 {[%clk 0:02:35.8]} 20... Kf8 {[%clk
0:02:34.3]} 21. Ne4 {[%clk 0:02:34.3]} 21... b6 {[%clk 0:02:29.8]} 22. g3 {[%clk
0:02:30.6]} 22... Nd5 {[%clk 0:02:30.1]} 23. c4 {[%clk 0:02:17.7]} 23... Nb4
{[%clk 0:02:30.2]} 24. Nc3 {[%clk 0:02:17.9]} 24... Ke7 {[%clk 0:02:26.8]} 25.
f4 {[%clk 0:02:13.7]} 25... Kd6 {[%clk 0:02:23.2]} 26. Kf2 {[%clk 0:02:12.4]}
26... Nc2 {[%clk 0:02:22.9]} 27. d5 {[%clk 0:02:05.3]} 27... cxd5 {[%clk
0:02:22.9]} 28. cxd5 {[%clk 0:02:03.7]} 28... Bxd5 {[%clk 0:02:22]} 29. Nb5+
{[%clk 0:02:03.6]} 29... Kc5 {[%clk 0:02:21.9]} 30. Nxa7 {[%clk 0:02:03.1]}
30... Be6 {[%clk 0:01:26.2]} 31. Bd3 {[%clk 0:01:53.2]} 31... Nb4 {[%clk
0:01:20.4]} 32. Bb1 {[%clk 0:01:52.8]} 32... Bd7 {[%clk 0:00:46.1]} 33. a3
{[%clk 0:01:49.2]} 33... Nd5 {[%clk 0:00:44.4]} 34. b4+ {[%clk 0:01:47.7]} 34...
Kd4 {[%clk 0:00:40]} 35. Ba2 {[%clk 0:01:37.5]} 35... b5 {[%clk 0:00:21.5]} 36.
Bb3 {[%clk 0:01:35.6]} 36... g5 {[%clk 0:00:20.5]} 37. Bd1 {[%clk 0:01:27.6]}
37... g4 {[%clk 0:00:13.6]} 38. Be2 {[%clk 0:01:27.3]} 38... Nc3 {[%clk
0:00:12.6]} 39. Bf1 {[%clk 0:01:26.2]} 39... Ne4+ {[%clk 0:00:10.7]} 40. Ke1
{[%clk 0:01:23.9]} 40... Nd6 {[%clk 0:00:08.7]} 41. Kd2 {[%clk 0:01:21.5]} 41...
f5 {[%clk 0:00:07.5]} 42. Bd3 {[%clk 0:01:21.4]} 42... Nc4+ {[%clk 0:00:07.3]}
43. Bxc4 {[%clk 0:01:11.2]} 43... Kxc4 {[%clk 0:00:05.9]} 44. Ke3 {[%clk
0:01:11.5]} 44... f6 {[%clk 0:00:04.1]} 45. Kd2 {[%clk 0:01:10.3]} 45... Kd4
{[%clk 0:00:04.6]} 46. Kc2 {[%clk 0:01:10.1]} 46... Ke3 {[%clk 0:00:02.9]} 47.
a4 {[%clk 0:01:09.2]} 47... bxa4 {[%clk 0:00:01.8]} 48. b5 {[%clk 0:01:09.5]}
48... Bxb5 {[%clk 0:00:02.2]} 49. Nxb5 {[%clk 0:01:09.4]} 49... Kf2 {[%clk
0:00:02.8]} 50. Nd4 {[%clk 0:01:07.2]} 50... Kg2 {[%clk 0:00:02.7]} 51. Nxf5
{[%clk 0:01:07.4]} 51... Kxh2 {[%clk 0:00:03.2]} 52. Kb2 {[%clk 0:01:06.9]}
52... Kh3 {[%clk 0:00:01.6]} 53. Ka3 {[%clk 0:01:06.9]} 53... h4 {[%clk
0:00:01.4]} 54. gxh4 {[%clk 0:01:07.1]} 54... g3 {[%clk 0:00:02]} 55. Nxg3
{[%clk 0:00:51.8]} 55... Kxh4 {[%clk 0:00:02.6]} 56. Ne2 {[%clk 0:00:41.3]}
56... Kg4 {[%clk 0:00:03.2]} 57. Kxa4 {[%clk 0:00:39.4]} 57... Kf3 {[%clk
0:00:03.7]} 58. Nd4+ {[%clk 0:00:25]} 58... Kxf4 {[%clk 0:00:04.6]} 59. Kb4
{[%clk 0:00:25.1]} 59... Ke4 {[%clk 0:00:05]} 60. Kc5 {[%clk 0:00:25.2]} 60...
f5 {[%clk 0:00:05.4]} 61. Nxf5 {[%clk 0:00:25.4]} 1/2-1/2

[Event "Late-Titled-Tuesday-Blitz-October-10-2023"]
[Site "Chess.com"]
[Date "2023.10.10"]
[Round "6"]
[White "SpeedofLight0"]
[Black "Ali_rastbod"]
[Result "1-0"]
[WhiteElo "3013"]
[BlackElo "2745"]
[TimeControl "180+1"]
[EndTime "15:03:16 PDT"]
[Termination "SpeedofLight0 won on time"]

1. Nf3 {[%clk 0:03:00.9]} 1... c5 {[%clk 0:02:58.4]} 2. b3 {[%clk 0:02:58.8]}
2... d5 {[%clk 0:02:54.1]} 3. e3 {[%clk 0:02:58.7]} 3... Nc6 {[%clk 0:02:50.8]}
4. Bb5 {[%clk 0:02:57.9]} 4... Bd7 {[%clk 0:02:50.9]} 5. Bb2 {[%clk 0:02:57.7]}
5... Nf6 {[%clk 0:02:50.7]} 6. O-O {[%clk 0:02:57.6]} 6... a6 {[%clk 0:02:50.7]}
7. Bxc6 {[%clk 0:02:57.8]} 7... Bxc6 {[%clk 0:02:51.6]} 8. d3 {[%clk 0:02:58.1]}
8... e6 {[%clk 0:02:51]} 9. Nbd2 {[%clk 0:02:58.2]} 9... Qc7 {[%clk 0:02:49.2]}
10. Ne5 {[%clk 0:02:58.5]} 10... Bd6 {[%clk 0:02:49.3]} 11. f4 {[%clk
0:02:58.8]} 11... O-O-O {[%clk 0:02:45.2]} 12. a3 {[%clk 0:02:56.1]} 12... Rhg8
{[%clk 0:02:39.9]} 13. h4 {[%clk 0:02:52.9]} 13... Rdf8 {[%clk 0:02:30]} 14. b4
{[%clk 0:02:52.1]} 14... cxb4 {[%clk 0:02:29.7]} 15. axb4 {[%clk 0:02:53]} 15...
Bxb4 {[%clk 0:02:30.2]} 16. Bd4 {[%clk 0:02:51.9]} 16... Nd7 {[%clk 0:02:28.7]}
17. Ndf3 {[%clk 0:02:39.6]} 17... f6 {[%clk 0:02:28.6]} 18. Nxd7 {[%clk
0:02:37.4]} 18... Qxd7 {[%clk 0:02:29]} 19. Qb1 {[%clk 0:02:34.6]} 19... Bd6
{[%clk 0:02:23.9]} 20. Qb6 {[%clk 0:02:35.2]} 20... Qc7 {[%clk 0:02:10.9]} 21.
Qb2 {[%clk 0:02:35.2]} 21... Re8 {[%clk 0:02:05.7]} 22. Rfb1 {[%clk 0:02:32.3]}
22... e5 {[%clk 0:02:01.5]} 23. fxe5 {[%clk 0:02:32.4]} 23... fxe5 {[%clk
0:02:02.4]} 24. Bb6 {[%clk 0:02:31.5]} 24... Qd7 {[%clk 0:02:00.1]} 25. Qc3
{[%clk 0:02:31.4]} 25... Rgf8 {[%clk 0:01:51.1]} 26. Rf1 {[%clk 0:02:18.9]}
26... Kb8 {[%clk 0:01:48.1]} 27. Qb2 {[%clk 0:01:45.2]} 27... Kc8 {[%clk
0:01:28.4]} 28. Ba7 {[%clk 0:01:41.9]} 28... h6 {[%clk 0:01:03.8]} 29. Qc3
{[%clk 0:01:34]} 29... Rf7 {[%clk 0:00:52.4]} 30. Ra5 {[%clk 0:01:21]} 30... Bc7
{[%clk 0:00:41.1]} 31. Raa1 {[%clk 0:01:16.5]} 31... d4 {[%clk 0:00:40.8]} 32.
exd4 {[%clk 0:01:08.8]} 32... Bxf3 {[%clk 0:00:40.7]} 33. Rxf3 {[%clk
0:01:06.9]} 33... Rxf3 {[%clk 0:00:40.8]} 34. gxf3 {[%clk 0:01:07.7]} 34... Qh3
{[%clk 0:00:41.1]} 35. Qd2 {[%clk 0:00:55.5]} 35... Qxh4 {[%clk 0:00:24.1]} 36.
d5 {[%clk 0:00:49.3]} 36... e4 {[%clk 0:00:21.7]} 37. dxe4 {[%clk 0:00:48.9]}
37... Re5 {[%clk 0:00:20.6]} 38. Be3 {[%clk 0:00:48]} 38... Rh5 {[%clk
0:00:19.9]} 39. Qg2 {[%clk 0:00:48.2]} 39... Bf4 {[%clk 0:00:17.2]} 40. Bf2
{[%clk 0:00:42.7]} 40... Bh2+ {[%clk 0:00:12.9]} 41. Kf1 {[%clk 0:00:42.5]}
41... Qf4 {[%clk 0:00:12.1]} 42. Ke2 {[%clk 0:00:29.1]} 42... Rg5 {[%clk
0:00:10.1]} 43. Qh3+ {[%clk 0:00:29.1]} 43... Kb8 {[%clk 0:00:09.2]} 44. Qe6
{[%clk 0:00:25.5]} 44... Rg2 {[%clk 0:00:07.1]} 45. Qe8+ {[%clk 0:00:22.6]}
45... Kc7 {[%clk 0:00:07.5]} 46. Qe7+ {[%clk 0:00:23.3]} 46... Kc8 {[%clk
0:00:06]} 47. Qc5+ {[%clk 0:00:18.9]} 47... Kb8 {[%clk 0:00:04.9]} 48. Qa7+
{[%clk 0:00:16.4]} 48... Kc8 {[%clk 0:00:05.4]} 49. Ra3 {[%clk 0:00:15]} 49...
Bg3 {[%clk 0:00:03.9]} 50. Rc3+ {[%clk 0:00:14.6]} 50... Kd8 {[%clk 0:00:04.5]}
51. Qa8+ {[%clk 0:00:11.7]} 51... Ke7 {[%clk 0:00:05]} 52. Qxb7+ {[%clk
0:00:12]} 52... Kf6 {[%clk 0:00:05.7]} 53. Rc6+ {[%clk 0:00:11.7]} 53... Kg5
{[%clk 0:00:05.4]} 54. Qxg7+ {[%clk 0:00:12]} 54... Kh4 {[%clk 0:00:05.3]} 55.
Rxh6+ {[%clk 0:00:11.7]} 1-0